bitfinex-derivatives/quotes_SOLF0:USTF0_20260226
["timestamp","ask_amount","ask_price","bid_price","bid_amount"]
[1772092667998,5.29760638,87.35,87.311,3.81303988]
[1772092672098,2.25074468,87.349,87.311,3.81303988]
[1772092674205,2.25074468,87.349,87.315,3.81303988]
[1772092677901,10.2997,87.379,87.315,3.81303988]
[1772092677902,2.30178577,87.357,87.315,3.81303988]
[1772092678201,3.02010367,87.35,87.315,3.81303988]
[1772092679203,5.32188944,87.35,87.315,3.81303988]
[1772092679598,5.32188944,87.35,87.295,3.56391847]
[1772092679599,2.30178577,87.349,87.295,3.56391847]
[1772092680398,2.2928641,87.339,87.295,3.56391847]
[1772092680602,2.2928641,87.339,87.266,28.41806267]
[1772092680603,2.2928641,87.319,87.277,24.92545337]
[1772092680901,2.2928641,87.319,87.277,3.56391847]
[1772092680902,3.02010367,87.31,87.277,3.56391847]
[1772092682104,2.2928641,87.319,87.277,3.56391847]
[1772092687300,10.60221636,87.365,87.253,21.3615349]
[1772092687301,4.86051815,87.33,87.28,3.02010367]
[1772092687505,4.86051815,87.33,87.281,3.56391847]
[1772092688806,5.15347104,87.36,87.291,3.56391847]
[1772092688807,3.02010367,87.34,87.291,3.56391847]
[1772092689510,1.84039173,87.339,87.291,3.56391847]
[1772092689908,1.84039173,87.339,87.297,10.3092]
[1772092690109,1.84039173,87.339,87.298,3.56391847]
[1772092691012,1.84039173,87.339,87.3,3.56391847]
[1772092692309,1.84039173,87.339,87.303,3.56391847]
[1772092695011,1.73396378,87.319,87.285,3.56391847]
[1772092695210,1.73396378,87.319,87.26,3.02010367]
[1772092695211,1.73396378,87.319,87.261,3.56391847]
[1772092695410,1.73396378,87.309,87.261,3.56391847]
[1772092695809,3.02010367,87.3,87.261,3.56391847]
[1772092696010,1.71292544,87.299,87.261,3.56391847]
[1772092704120,3.02010367,87.29,87.261,3.56391847]
[1772092705123,1.80841746,87.289,87.248,3.56391847]
[1772092710828,1.80841746,87.289,87.25,3.7417518]
[1772092719530,1.80841746,87.289,87.237,3.51268049]
[1772092720430,3.02010367,87.27,87.237,3.51268049]
[1772092725138,1.80832506,87.279,87.237,3.51268049]
[1772092725339,1.7713658,87.277,87.237,3.51268049]
[1772092725538,3.02010367,87.27,87.237,3.51268049]
[1772092726945,1.78407342,87.287,87.237,3.51268049]
[1772092727241,1.78407342,87.287,87.24,3.02459655]
[1772092727441,1.78407342,87.287,87.241,3.51268049]
[1772092728934,1.78407342,87.287,87.24,3.02459655]
[1772092728935,1.78407342,87.287,87.243,3.51268049]
[1772092737152,3.02459655,87.28,87.243,3.51268049]
[1772092744554,4.90048806,87.28,87.243,3.51268049]
[1772092745249,1.87589151,87.289,87.243,3.51268049]
[1772092745453,3.02459655,87.28,87.243,3.51268049]
[1772092747554,1.87589151,87.289,87.243,3.51268049]
[1772092748062,1.77074359,87.279,87.243,3.51268049]
[1772092748563,4.79534014,87.26,87.228,3.55954356]
[1772092748863,1.77074359,87.259,87.228,3.55954356]
[1772092749558,1.77074359,87.249,87.213,3.55954356]
[1772092752161,3.02459655,87.25,87.213,3.55954356]
[1772092752162,1.79832305,87.259,87.213,3.55954356]
[1772092752963,1.79832305,87.259,87.2,3.02459655]
[1772092752964,1.79832305,87.259,87.215,3.55954356]
[1772092754466,1.79229392,87.249,87.205,3.55954356]
[1772092755160,1.79229392,87.239,87.205,3.55954356]
[1772092759767,1.79229392,87.239,87.194,3.55954356]
[1772092763777,1.79229392,87.239,87.18,191.01367371]
[1772092763778,5.01973164,87.25,87.201,3.55954356]
[1772092764067,3.02459655,87.24,87.201,3.55954356]
[1772092764974,3.02459655,87.24,87.203,3.55954356]
[1772092766272,3.02459655,87.24,87.206,3.65551555]
[1772092766474,1.99513509,87.249,87.206,3.65551555]
[1772092767280,1.91638372,87.26,87.209,3.65551555]
[1772092767473,4.94098027,87.26,87.209,3.65551555]
[1772092767672,1.91640894,87.259,87.209,3.65551555]
[1772092768879,1.91640894,87.259,87.21,10.3194]
[1772092769085,1.91640894,87.259,87.211,3.65551555]
[1772092769982,1.91640894,87.259,87.214,3.65551555]
[1772092774090,2.01760712,87.249,87.214,3.65551555]
[1772092775288,2.01653077,87.26,87.214,3.65551555]
[1772092775585,2.01653077,87.259,87.214,3.65551555]
[1772092776391,5.05657954,87.25,87.214,3.65551555]
[1772092776793,2.03198299,87.249,87.214,3.65551555]
[1772092781998,3.02459655,87.24,87.201,3.75379933]
[1772092782297,2.08959403,87.239,87.201,3.75379933]
[1772092785898,2.08959403,87.239,87.202,10.3205]
[1772092786196,2.08959403,87.239,87.203,3.75379933]
[1772092790897,2.08959403,87.239,87.205,3.75379933]
[1772092792504,2.08959403,87.239,87.208,14.07349933]
[1772092793095,2.08959403,87.239,87.208,3.75379933]
[1772092794306,2.09879119,87.249,87.208,3.75379933]
[1772092796301,2.05049326,87.258,87.208,3.75379933]
[1772092797207,3.02765636,87.25,87.21,3.78641374]
[1772092797405,5.07814979,87.25,87.21,3.78641374]
[1772092797604,2.05049343,87.249,87.21,3.78641374]
[1772092800613,2.09578467,87.26,87.21,3.78641374]
[1772092801107,2.09578467,87.274,87.21,3.78641374]
[1772092801313,2.09578467,87.274,87.225,3.78641374]
[1772092802319,2.09191153,87.284,87.225,3.78641374]
[1772092802920,2.09191153,87.284,87.145,50.07343016]
[1772092802921,8.45530156,87.283,87.205,21.46004149]
[1772092803119,8.45530156,87.282,87.191,21.46004149]
[1772092803314,8.45530156,87.282,87.126,279.29343016]
[1772092803315,8.45530156,87.287,87.202,21.46004149]
[1772092803619,2.09191153,87.297,87.236,3.78641374]
[1772092803816,1.91970188,87.295,87.236,3.78641374]
[1772092804416,1.91970188,87.314,87.238,3.78641374]
[1772092804620,1.91970188,87.314,87.258,3.78641374]
[1772092804819,1.91970188,87.312,87.258,3.78641374]
[1772092805019,1.91970188,87.311,87.258,3.78641374]
[1772092805523,1.91970188,87.324,87.258,3.78641374]
[1772092805816,1.91970188,87.324,87.276,0.08266551]
[1772092806016,1.91970188,87.324,87.277,3.78641374]
[1772092807517,10.3041,87.341,87.277,3.78641374]
[1772092809027,10.3041,87.341,87.3,0.08225436]
[1772092809221,12.2326255,87.341,87.3,0.08225436]
[1772092809426,12.2326255,87.341,87.3,3.8686681]
[1772092809621,1.9285255,87.34,87.3,3.8686681]
[1772092810125,10.61432071,87.382,87.3,3.8686681]
[1772092810126,1.96276531,87.338,87.3,3.8686681]
[1772092810525,10.3049,87.335,87.3,3.8686681]
[1772092810726,10.3049,87.335,87.3,3.78641374]
[1772092811419,8.40289098,87.395,87.215,160.5164]
[1772092811420,1.96276531,87.359,87.31,3.78641374]
[1772092811816,1.96276531,87.359,87.309,0.08434458]
[1772092812025,1.96276531,87.359,87.297,3.78641374]
[1772092812527,5.15455084,87.38,87.297,3.78641374]
[1772092812528,1.97908927,87.34,87.297,3.78641374]
[1772092813223,1.97908927,87.336,87.273,3.78641374]
[1772092813923,7.22839064,87.35,87.275,3.78641374]
[1772092814125,2.07452757,87.349,87.275,3.78641374]
[1772092815024,2.15878714,87.343,87.277,3.78641374]
[1772092815226,5.15386307,87.35,87.277,3.78641374]
[1772092815429,2.15878714,87.355,87.277,3.78641374]
[1772092815624,2.15878714,87.355,87.302,3.78641374]
[1772092816732,2.15878714,87.355,87.32,0.08316184]
[1772092818027,8.40289098,87.405,87.32,0.08316184]
[1772092818028,2.13790402,87.35,87.32,0.08316184]
[1772092818734,2.13790402,87.35,87.302,3.78641374]
[1772092819334,0.07734721,87.335,87.302,3.78641374]
[1772092820437,0.07734721,87.335,87.279,3.78641374]
[1772092821137,2.14331744,87.339,87.279,3.78641374]
[1772092821339,0.0739929,87.316,87.279,3.78641374]
[1772092821530,0.0739929,87.316,87.283,3.78641374]
[1772092822040,2.14331744,87.339,87.283,3.78641374]
[1772092822641,2.14331744,87.339,87.292,3.78641374]
[1772092825244,12.53558516,87.369,87.292,3.78641374]
[1772092825439,2.23478516,87.368,87.292,3.78641374]
[1772092826537,5.15320524,87.38,87.322,3.50120682]
[1772092827843,2.23233417,87.379,87.342,0.07465315]
[1772092828947,10.3007,87.37,87.342,0.07465315]
[1772092829938,10.2995,87.38,87.342,3.57585997]
[1772092830142,1.95545503,87.389,87.342,3.57585997]
[1772092830447,1.95545503,87.4,87.342,3.50120682]
[1772092830842,1.95545503,87.4,87.357,0.07242076]
[1772092831038,1.95545503,87.388,87.342,3.50120682]
[1772092831446,1.95545503,87.386,87.342,3.50120682]
[1772092832947,0.07495146,87.387,87.342,3.50120682]
[1772092833345,1.97574988,87.387,87.342,3.50120682]
[1772092834150,1.97574988,87.387,87.257,3.50120682]
[1772092834650,1.90079842,87.387,87.257,3.50120682]
[1772092834952,10.2999,87.377,87.288,3.88408164]
[1772092835544,10.2999,87.377,87.325,3.88408164]
[1772092835855,12.19949842,87.387,87.325,3.88408164]
[1772092836447,12.19949842,87.387,87.347,0.08674375]
[1772092838548,12.19949842,87.387,87.347,3.97082539]
[1772092841357,10.2976,87.397,87.347,3.97082539]
[1772092841658,2.15406538,87.396,87.347,3.97082539]
[1772092841847,2.15406538,87.435,87.347,3.88408164]
[1772092842052,2.15406538,87.429,87.347,3.88408164]
[1772092842254,2.15406538,87.429,87.291,34.4]
[1772092842255,2.15406538,87.429,87.364,3.88408164]
[1772092842557,10.2967,87.404,87.364,3.88408164]
[1772092843255,10.2967,87.404,87.375,0.07898666]
[1772092844555,10.2953,87.416,87.376,3.88408164]
[1772092844953,2.12463253,87.42,87.304,34.4]
[1772092845150,2.12463253,87.42,87.305,3.88408164]
[1772092845353,2.12463253,87.396,87.349,3.88408164]
[1772092845861,0.08211867,87.371,87.349,3.88408164]
[1772092846555,0.08211867,87.371,87.309,3.88408164]
[1772092846962,0.08211867,87.371,87.312,3.88408164]
[1772092847161,10.2991,87.383,87.312,3.88408164]
[1772092847561,10.3002,87.375,87.315,10.3071]
[1772092847860,10.3002,87.375,87.316,3.88408164]
[1772092848855,2.12106678,87.385,87.337,0.07502575]
[1772092848856,10.3012,87.366,87.337,0.07502575]
[1772092849063,2.15833642,87.374,87.335,7.39e-06]
[1772092849260,0.08398781,87.354,87.335,7.39e-06]
[1772092851462,10.2999,87.377,87.335,7.39e-06]
[1772092851763,10.2999,87.377,87.337,3.88408164]
[1772092852665,3.50674559,87.386,87.337,3.88408164]
[1772092859659,3.66708288,87.384,87.336,0.08115709]
[1772092860260,3.66708288,87.384,87.325,3.87236967]
[1772092860460,5.15029608,87.4,87.302,3.87236967]
[1772092860461,3.66708288,87.368,87.302,3.87236967]
[1772092860967,3.66708288,87.362,87.302,3.87236967]
[1772092861163,3.66708288,87.362,87.282,21.46004149]
[1772092861164,0.07275305,87.363,87.303,3.87236967]
[1772092861368,3.66708288,87.375,87.303,3.87236967]
[1772092861666,3.66708288,87.375,87.329,3.87236967]
[1772092862266,3.66708288,87.392,87.331,3.87236967]
[1772092862471,3.66708288,87.392,87.343,3.95104637]
[1772092863872,3.66708288,87.392,87.343,0.0786767]
[1772092864472,3.66708288,87.392,87.343,3.95104637]
[1772092868063,3.66708288,87.406,87.343,3.95104637]
[1772092868768,3.66708288,87.406,87.355,3.87236967]
[1772092869069,3.66708288,87.406,87.315,28.61338866]
[1772092869070,3.66708288,87.42,87.367,3.87236967]
[1772092869276,3.66708288,87.434,87.369,3.87236967]
[1772092869981,10.2945,87.423,87.393,0.08732658]
[1772092872278,3.66708288,87.416,87.369,3.87236967]
[1772092873678,0.07354748,87.401,87.369,3.87236967]
[1772092873883,3.66708288,87.43,87.369,3.87236967]
[1772092874884,3.66708288,87.428,87.369,3.87236967]
[1772092876186,3.66708288,87.424,87.369,3.87236967]
[1772092879089,3.66708288,87.422,87.369,3.87236967]
[1772092883298,3.66708288,87.419,87.355,3.87236967]
[1772092883990,3.66708288,87.415,87.355,3.87236967]
[1772092884495,3.66708288,87.393,87.339,3.87236967]
[1772092886897,3.68526284,87.392,87.339,3.87236967]
[1772092887586,20.5827,87.45,87.276,175.0]
[1772092887587,3.68526284,87.419,87.342,3.51163318]
[1772092888296,3.68526284,87.417,87.355,3.51163318]
[1772092889898,3.68526284,87.412,87.357,3.51163318]
[1772092892100,3.68526284,87.412,87.367,3.51163318]
[1772092892496,10.2945,87.423,87.367,3.51163318]
[1772092893701,10.2945,87.423,87.37,3.51163318]
[1772092894199,3.68526284,87.425,87.372,3.51163318]
[1772092898000,3.60084947,87.441,87.375,3.8120505]
[1772092898202,3.60084947,87.484,87.375,3.8120505]
[1772092899806,3.60084947,87.484,87.417,3.8120505]
[1772092900905,3.60084947,87.484,87.421,3.8120505]
[1772092901908,3.60084947,87.484,87.427,3.8120505]
[1772092903910,3.60084947,87.483,87.415,14.1073505]
[1772092904109,3.60084947,87.483,87.416,3.8120505]
[1772092904311,3.60084947,87.459,87.389,3.8120505]
[1772092905613,3.60084947,87.454,87.391,3.8120505]
[1772092906716,3.60084947,87.452,87.391,3.8120505]
[1772092907119,3.60084947,87.444,87.378,3.8120505]
[1772092908919,3.60084947,87.438,87.378,3.8120505]
[1772092909114,3.60084947,87.438,87.367,10.301]
[1772092909310,3.60084947,87.438,87.365,3.8120505]
[1772092910813,3.60084947,87.415,87.365,3.8120505]
[1772092911819,3.60084947,87.413,87.344,3.8120505]
[1772092912619,3.60084947,87.408,87.344,3.8120505]
[1772092913317,3.60084947,87.408,87.347,3.8120505]
[1772092913519,3.60084947,87.408,87.331,3.8120505]
[1772092914123,3.60084947,87.397,87.333,3.8120505]
[1772092915921,3.63874747,87.395,87.333,3.8120505]
[1772092918629,3.63874747,87.395,87.336,3.5262515]
[1772092918827,3.63874747,87.393,87.336,3.5262515]
[1772092919628,3.63874747,87.391,87.336,3.5262515]
[1772092920331,3.63874747,87.391,87.337,3.5262515]
[1772092920826,34.4,87.452,87.274,34.4]
[1772092920827,3.63874747,87.356,87.288,3.5262515]
[1772092921629,3.63874747,87.353,87.288,3.5262515]
[1772092922231,3.63874747,87.353,87.274,3.5262515]
[1772092922930,3.63874747,87.351,87.275,3.5262515]
[1772092924031,3.63874747,87.351,87.284,3.5262515]
[1772092924333,3.63874747,87.365,87.284,3.5262515]
[1772092924830,3.63874747,87.365,87.299,3.5262515]
[1772092925230,10.2997,87.379,87.299,3.5262515]
[1772092925231,3.63874747,87.379,87.299,3.5262515]
[1772092925430,3.63874747,87.379,87.328,3.5262515]
[1772092925630,3.63874747,87.395,87.328,3.5262515]
[1772092925829,3.63874747,87.395,87.341,3.5262515]
[1772092926337,3.63874747,87.395,87.329,10.3054]
[1772092926527,3.63874747,87.395,87.33,3.5262515]
[1772092927133,3.63874747,87.395,87.332,3.5262515]
[1772092928033,3.63874747,87.393,87.332,3.5262515]
[1772092928734,3.63874747,87.391,87.332,3.5262515]
[1772092928936,3.63874747,87.391,87.333,3.5262515]
[1772092929128,3.63874747,87.405,87.333,3.5262515]
[1772092929937,3.63874747,87.405,87.345,3.5262515]
[1772092931636,3.63874747,87.404,87.331,10.3052]
[1772092931839,3.63874747,87.404,87.329,3.5262515]
[1772092932939,3.63874747,87.384,87.329,3.5262515]
[1772092934243,3.63874747,87.384,87.33,10.3054]
[1772092934446,3.63874747,87.384,87.331,3.5262515]
[1772092935143,3.63874747,87.384,87.335,3.5262515]
[1772092935441,3.63874747,87.384,87.251,160.4506]
[1772092935442,3.63874747,87.384,87.284,3.5262515]
[1772092935743,3.63874747,87.384,87.315,3.5262515]
[1772092937046,3.63874747,87.382,87.306,3.5262515]
[1772092937546,3.63874747,87.382,87.317,3.5262515]
[1772092938948,13.93914747,87.372,87.318,13.8330515]
[1772092939139,3.63874747,87.371,87.319,3.5262515]
[1772092940943,3.63874747,87.371,87.311,10.3076]
[1772092941951,3.63874747,87.368,87.311,10.3076]
[1772092942247,3.63874747,87.368,87.311,13.8338515]
[1772092943645,3.63874747,87.364,87.311,3.5262515]
[1772092944853,3.63874747,87.364,87.312,3.5262515]
[1772092946652,3.63874747,87.364,87.314,3.67003487]
[1772092947157,3.63874747,87.364,87.316,3.67003487]
[1772092949454,3.58526064,87.362,87.31,10.3077]
[1772092949652,3.58526064,87.362,87.31,13.97773487]
[1772092949853,3.58526064,87.362,87.311,3.67003487]
[1772092950852,10.3018,87.361,87.311,3.67003487]
[1772092951155,3.58526064,87.36,87.311,3.67003487]
[1772092951556,3.58526064,87.36,87.316,3.67003487]
[1772092951851,3.58526064,87.36,87.288,3.67003487]
[1772092952157,3.58526064,87.352,87.288,3.67003487]
[1772092953266,3.58526064,87.35,87.29,3.67003487]
[1772092953660,3.58526064,87.35,87.221,175.0]
[1772092953661,3.58526064,87.349,87.273,3.67003487]
[1772092954166,3.74761545,87.323,87.273,3.67003487]
[1772092955172,3.74761545,87.32,87.273,3.67003487]
[1772092956267,3.74761545,87.317,87.273,3.67003487]
[1772092958368,10.3059,87.326,87.273,3.67003487]
[1772092958870,3.74761545,87.332,87.273,3.67003487]
[1772092959268,3.74761545,87.33,87.273,3.67003487]
[1772092959474,3.74761545,87.33,87.223,3.55515848]
[1772092959871,3.74761545,87.329,87.223,3.55515848]
[1772092960067,10.3088,87.301,87.223,3.55515848]
[1772092960271,10.3088,87.301,87.225,3.55515848]
[1772092960472,3.74761545,87.3,87.225,3.55515848]
[1772092960675,3.74761545,87.3,87.227,3.55515848]
[1772092960977,3.74761545,87.349,87.227,3.55515848]
[1772092961578,3.74761545,87.326,87.247,3.55515848]
[1772092962271,3.74761545,87.326,87.249,3.55515848]
[1772092962979,3.74761545,87.341,87.262,3.55515848]
[1772092963881,3.74761545,87.341,87.272,3.55515848]
[1772092965485,3.74761545,87.341,87.275,3.55515848]
[1772092965686,14.05031545,87.353,87.275,3.55515848]
[1772092966086,14.05031545,87.353,87.289,3.55515848]
[1772092966087,3.74761545,87.353,87.289,3.55515848]
[1772092966386,3.74761545,87.367,87.289,3.55515848]
[1772092966577,3.74761545,87.367,87.249,34.4]
[1772092966781,3.74761545,87.321,87.25,3.55515848]
[1772092967275,3.74761545,87.321,87.253,3.55515848]
[1772092968889,3.74761545,87.321,87.259,3.55515848]
[1772092970586,3.74761545,87.335,87.261,3.55515848]
[1772092971187,3.74761545,87.335,87.27,3.55515848]
[1772092972388,3.74761545,87.335,87.278,3.55515848]
[1772092972584,3.74761545,87.355,87.278,3.55515848]
[1772092973982,3.74761545,87.352,87.283,3.55515848]
[1772092974787,3.74761545,87.347,87.283,3.55515848]
[1772092975689,3.74761545,87.343,87.283,3.55515848]
[1772092975988,160.1231,87.431,87.283,3.55515848]
[1772092975989,3.74761545,87.389,87.283,3.55515848]
[1772092976488,3.52146536,87.36,87.298,3.55580264]
[1772092977689,3.52146536,87.357,87.3,3.55580264]
[1772092978289,3.52146536,87.355,87.3,3.55580264]
[1772092979091,3.52146536,87.353,87.3,3.55580264]
[1772092979393,3.52146536,87.397,87.3,3.55580264]
[1772092980191,3.52146536,87.375,87.303,3.55580264]
[1772092980890,20.5853,87.439,87.308,3.55580264]
[1772092980891,3.52146536,87.373,87.308,3.55580264]
[1772092981392,3.52146536,87.387,87.322,3.55580264]
[1772092981592,3.52146536,87.409,87.322,3.55580264]
[1772092982291,3.52146536,87.395,87.324,3.55580264]
[1772092983694,3.52146536,87.395,87.351,0.0733106]
[1772092983895,10.2982,87.391,87.351,0.0733106]
[1772092984195,3.52146536,87.404,87.351,3.62911324]
[1772092984599,3.52146536,87.448,87.351,3.55580264]
[1772092984787,3.52146536,87.448,87.364,3.55580264]
[1772092984990,10.2931,87.435,87.364,3.55580264]
[1772092985192,3.52146536,87.434,87.364,3.55580264]
[1772092985391,3.52146536,87.434,87.367,3.55580264]
[1772092986396,3.52146536,87.434,87.369,3.55580264]
[1772092986596,3.52146536,87.455,87.369,3.55580264]
[1772092986893,3.52146536,87.455,87.374,3.55580264]
[1772092988297,3.52146536,87.455,87.389,3.55580264]
[1772092989599,3.52146536,87.455,87.391,3.55580264]
[1772092990496,3.52146536,87.452,87.391,3.55580264]
[1772092991297,3.52146536,87.449,87.391,3.55580264]
[1772092992898,3.52146536,87.446,87.391,3.55580264]
[1772092993394,3.52146536,87.446,87.378,10.2996]
[1772092993600,3.52146536,87.443,87.375,3.55580264]
[1772092994196,3.52146536,87.44,87.366,10.301]
[1772092994701,3.52146536,87.44,87.36,3.55580264]
[1772092995097,3.52146536,87.421,87.36,3.55580264]
[1772092995299,3.52146536,87.421,87.345,3.55580264]
[1772092995498,3.52146536,87.421,87.289,3.55580264]
[1772092996002,3.52146536,87.399,87.316,3.55580264]
[1772092997904,3.52146536,87.399,87.346,10.3034]
[1772092998105,3.52146536,87.399,87.347,3.55580264]
[1772092998604,3.52146536,87.399,87.351,3.55580264]
[1772092998800,3.52146536,87.414,87.351,3.55580264]
[1772092999900,3.52146536,87.412,87.353,3.55580264]
[1772093001108,3.52146536,87.412,87.355,3.55580264]
[1772093002006,3.52146536,87.412,87.357,3.55580264]
[1772093002806,3.52146536,87.412,87.296,34.4]
[1772093002807,3.52146536,87.409,87.343,3.55580264]
[1772093003404,3.52146536,87.409,87.289,34.4]
[1772093003405,3.52146536,87.409,87.328,3.55580264]
[1772093003610,3.52146536,87.386,87.328,3.55580264]
[1772093006409,3.52887731,87.384,87.328,3.55580264]
[1772093006715,3.52887731,87.384,87.327,3.58157989]
[1772093007516,3.52887731,87.383,87.327,3.58157989]
[1772093007814,3.52887731,87.383,87.279,3.58157989]
[1772093008912,3.52887731,87.379,87.317,10.3069]
[1772093009818,3.52887731,87.379,87.321,3.58157989]
[1772093010916,3.52887731,87.379,87.324,10.3061]
[1772093011117,3.52887731,87.379,87.325,3.58157989]
[1772093011612,3.52887731,87.376,87.325,3.58157989]
[1772093011811,3.52887731,87.376,87.294,3.58157989]
[1772093012420,3.52887731,87.355,87.295,13.89107989]
[1772093012617,3.52887731,87.355,87.296,3.58157989]
[1772093012811,3.52887731,87.404,87.296,3.58157989]
[1772093013111,3.52887731,87.389,87.296,3.58157989]
[1772093013914,3.52887731,87.365,87.308,10.3079]
[1772093015921,3.52887731,87.365,87.308,13.81070446]
[1772093016316,3.52887731,87.365,87.308,10.3079]
[1772093016521,3.52887731,87.365,87.312,3.50280446]
[1772093017919,3.60221494,87.359,87.26,3.50280446]
[1772093018922,3.60221494,87.355,87.289,3.50280446]
[1772093020322,3.60221494,87.355,87.291,3.50280446]
[1772093021922,3.60221494,87.355,87.294,3.50280446]
[1772093022423,3.60221494,87.355,87.297,3.50280446]
[1772093025921,3.60221494,87.355,87.268,3.50280446]
[1772093026127,3.60221494,87.33,87.268,3.50280446]
[1772093026928,3.60221494,87.33,87.272,3.50280446]
[1772093027630,3.60221494,87.33,87.287,3.50280446]
[1772093030631,3.60221494,87.344,87.287,3.50280446]
[1772093032028,3.60221494,87.344,87.289,3.50280446]
[1772093036730,3.79026025,87.373,87.292,3.71608936]
[1772093037929,3.79026025,87.372,87.315,10.307]
[1772093038137,3.79026025,87.372,87.296,3.71608936]
[1772093039833,3.79026025,87.356,87.296,3.71608936]
[1772093040335,3.79026025,87.356,87.25,20.6297]
[1772093040336,3.79026025,87.356,87.299,3.71608936]
[1772093042034,3.79026025,87.356,87.302,3.71608936]
[1772093042536,3.79026025,87.356,87.306,3.71608936]
[1772093042737,3.79026025,87.371,87.306,3.71608936]
[1772093043138,3.79026025,87.371,87.317,3.71608936]
[1772093044937,3.79026025,87.371,87.319,3.71608936]
[1772093046641,3.79026025,87.371,87.321,3.71608936]
[1772093046939,3.79026025,87.386,87.321,3.71608936]
[1772093047435,3.79026025,87.385,87.325,3.71608936]
[1772093048236,3.79026025,87.385,87.327,10.3056]
[1772093048540,3.79026025,87.385,87.328,3.71608936]
[1772093049942,3.79026025,87.385,87.333,3.71608936]
[1772093050143,3.79026025,87.383,87.333,3.71608936]
[1772093050737,10.2995,87.38,87.333,3.71608936]
[1772093050938,3.79026025,87.379,87.333,3.71608936]
[1772093051140,3.79026025,87.379,87.32,3.71608936]
[1772093052942,3.79026025,87.377,87.32,3.71608936]
[1772093054844,3.79026025,87.377,87.26,34.4]
[1772093054845,3.79026025,87.409,87.329,3.71608936]
[1772093055342,3.79026025,87.409,87.367,3.71608936]
[1772093055541,3.79026025,87.43,87.367,3.71608936]
[1772093056743,3.79026025,87.43,87.371,3.71608936]
[1772093057145,3.79026025,87.43,87.376,10.2999]
[1772093058447,3.79026025,87.43,87.376,14.01598936]
[1772093059147,3.79026025,87.43,87.376,3.71608936]
[1772093059446,160.0182,87.488,87.351,3.71608936]
[1772093059447,3.79026025,87.427,87.351,3.71608936]
[1772093060542,3.79026025,87.427,87.284,160.391]
[1772093060543,3.79026025,87.411,87.333,3.71608936]
[1772093061949,3.79026025,87.392,87.335,3.71608936]
[1772093064753,3.79026025,87.392,87.339,3.71608936]
[1772093065056,3.79026025,87.392,87.325,3.71608936]
[1772093065551,3.79026025,87.391,87.328,3.71608936]
[1772093070551,3.72599261,87.387,87.312,3.77847554]
[1772093071049,3.72599261,87.358,87.299,3.77847554]
[1772093072849,14.02809261,87.358,87.299,3.77847554]
[1772093073154,3.72599261,87.399,87.299,3.77847554]
[1772093073849,10.2998,87.378,87.312,10.3074]
[1772093074152,3.72599261,87.377,87.313,3.77847554]
[1772093074847,10.3005,87.371,87.313,3.77847554]
[1772093075153,3.79995005,87.37,87.313,3.77847554]
[1772093076052,3.79995005,87.37,87.318,3.59517933]
[1772093076848,3.79995005,87.37,87.323,10.3062]
[1772093077054,3.79995005,87.37,87.324,3.59517933]
[1772093078358,3.79995005,87.37,87.325,10.3059]
[1772093078657,3.79995005,87.37,87.326,3.59517933]
[1772093079160,3.79995005,87.384,87.331,3.59517933]
[1772093080054,3.79995005,87.384,87.341,3.59517933]
[1772093080254,10.2979,87.394,87.351,3.59517933]
[1772093080860,14.09785005,87.394,87.351,3.59517933]
[1772093081159,3.79995005,87.393,87.351,3.59517933]
[1772093082461,3.79995005,87.407,87.361,3.59517933]
[1772093083856,3.79995005,87.406,87.36,3.01772279]
[1772093084057,3.79995005,87.399,87.35,3.01772279]
[1772093088062,3.79995005,87.399,87.35,6.61290212]
[1772093088462,3.79995005,87.399,87.35,3.59517933]
[1772093089059,3.79995005,87.399,87.351,3.59517933]
[1772093093767,3.79995005,87.399,87.352,3.59517933]
[1772093094470,3.79995005,87.399,87.355,3.59517933]
[1772093095875,3.79995005,87.399,87.356,10.3022]
[1772093096075,3.79995005,87.399,87.357,3.75619624]
[1772093099978,3.68681561,87.405,87.361,3.75619624]
[1772093100373,3.68681561,87.399,87.361,3.75619624]
[1772093100666,3.68681561,87.399,87.35,6.77247998]
[1772093100871,3.68681561,87.399,87.351,3.75619624]
[1772093101477,3.68681561,87.399,87.353,14.05869624]
[1772093101678,3.01628374,87.41,87.361,3.75619624]
[1772093102480,3.68681561,87.409,87.361,3.75619624]
[1772093103678,6.70309935,87.42,87.371,3.75619624]
[1772093103977,3.68681561,87.419,87.371,3.75619624]
[1772093105173,3.68681561,87.419,87.308,160.3452]
[1772093105174,3.68681561,87.399,87.35,3.01628374]
[1772093105575,3.68681561,87.395,87.343,3.75619624]
[1772093105778,3.68681561,87.379,87.331,3.75619624]
[1772093107079,3.68681561,87.377,87.331,3.75619624]
[1772093107880,3.68681561,87.377,87.321,3.75619624]
[1772093108079,3.68681561,87.369,87.321,3.75619624]
[1772093108382,3.68681561,87.359,87.31,3.01628374]
[1772093109281,3.68681561,87.359,87.309,3.75619624]
[1772093110081,3.68681561,87.359,87.31,3.01628374]
[1772093110477,3.68681561,87.359,87.309,3.75619624]
[1772093111677,3.68681561,87.348,87.292,3.75619624]
[1772093111876,160.1694,87.405,87.28,3.01628374]
[1772093111877,3.68681561,87.329,87.28,3.01628374]
[1772093112181,3.68681561,87.319,87.271,3.75619624]